bitfinex/quotes_ETHUSD_20250526
["timestamp","ask_amount","ask_price","bid_price","bid_amount"]
[1748242850270,0.36101173,2580.8,2580.4,4.353]
[1748242850636,0.05,2580.9,2580.4,4.353]
[1748242851230,0.05,2580.9,2580.5,3.867]
[1748242855611,0.05,2580.9,2580.3,8.0]
[1748242855891,1.1649,2580.8,2580.4,8.22]
[1748242856294,1.1649,2580.8,2580.5,8.22]
[1748242856599,1.1649,2580.8,2580.2,4.37536264]
[1748242856600,1.1649,2580.8,2580.6,8.22]
[1748242856811,0.45115437,2580.7,2580.6,8.22]
[1748242857396,1.1649,2580.8,2580.6,4.353]
[1748242857694,1.1649,2580.8,2580.6,8.22]
[1748242858109,0.05,2580.9,2580.6,8.22]
[1748242859478,0.36158412,2580.8,2580.6,8.22]
[1748242860390,0.05,2580.9,2580.6,8.22]
[1748242862189,0.05,2580.9,2580.3,4.83120309]
[1748242862370,1.1948,2580.8,2580.4,8.22]
[1748242862566,1.1948,2580.8,2580.5,8.22]
[1748242862766,0.36154491,2580.7,2580.6,4.353]
[1748242862985,0.36154491,2580.7,2580.6,8.22]
[1748242866702,0.36154491,2580.7,2580.1,0.8]
[1748242866907,0.36154491,2580.7,2580.6,4.353]
[1748242867106,1.1552,2580.6,2580.1,0.8]
[1748242867405,1.1552,2580.5,2580.3,4.353]
[1748242867701,1.95645246,2580.4,2580.3,4.353]
[1748242868614,2.31799737,2580.4,2580.3,4.353]
[1748242869306,1.51674491,2580.4,2580.3,4.353]
[1748242873506,1.1479,2580.3,2579.3,5.05390309]
[1748242873712,1.1479,2580.3,2579.4,8.158]
[1748242873914,0.36154491,2580.2,2579.4,8.158]
[1748242874914,0.36154491,2580.1,2579.4,8.158]
[1748242875714,0.36154491,2580.1,2579.4,4.291]
[1748242875915,0.36154491,2580.0,2579.5,3.868]
[1748242876414,1.2394,2579.9,2579.5,3.868]
[1748242876823,1.2394,2579.9,2579.3,0.2227]
[1748242877116,1.2394,2579.9,2579.6,8.159]
[1748242877919,1.2394,2579.9,2579.1,8.356]
[1748242878216,6.85732457,2580.0,2579.7,4.291]
[1748242878217,1.94557246,2579.8,2579.7,4.291]
[1748242878415,2.30655249,2579.8,2579.7,8.159]
[1748242879021,2.68666355,2579.8,2579.7,8.159]
[1748242879974,2.68666355,2579.8,2579.7,8.16]
[1748242881924,2.30655249,2579.8,2579.7,8.16]
[1748242883434,1.49688003,2579.8,2579.7,8.16]
[1748242884091,1.1359,2579.8,2579.7,8.16]
[1748242886136,1.1359,2579.8,2579.1,8.5774]
[1748242886438,1.1359,2579.8,2579.2,8.161]
[1748242887217,0.36098003,2579.7,2579.2,8.161]
[1748242887934,0.36098003,2579.7,2579.1,8.356]
[1748242888141,0.84061114,2579.7,2579.2,8.161]
[1748242888344,1.1807,2579.6,2579.1,8.356]
[1748242888504,1.54168003,2579.6,2579.2,8.161]
[1748242888701,1.54168003,2579.6,2579.1,8.356]
[1748242888901,1.2166,2579.4,2579.2,4.292]
[1748242889128,1.2166,2579.4,2579.3,3.869]
[1748242889516,1.57758003,2579.4,2579.3,3.869]
[1748242889713,1.57758003,2579.4,2579.1,8.356]
[1748242889916,1.57758003,2579.4,2579.2,8.161]
[1748242890131,2.08549425,2579.4,2579.2,8.161]
[1748242890719,0.36098003,2579.3,2579.2,8.161]
[1748242892856,0.36098003,2579.3,2579.2,4.292]
[1748242893064,0.36098003,2579.3,2579.2,8.161]
[1748242897850,1.49018003,2579.9,2579.2,8.3824]
[1748242898351,3.2994311,2579.4,2578.5,0.42390218]
[1748242898551,3.2994311,2579.2,2578.6,8.162]
[1748242898750,4.78961113,2579.3,2578.6,8.162]
[1748242899553,0.36098003,2579.2,2578.6,8.162]
[1748242900307,0.36098003,2579.2,2578.7,8.162]
[1748242900491,0.36098003,2579.1,2578.8,8.162]
[1748242901391,0.36098003,2579.0,2578.8,8.162]
[1748242902463,0.36098003,2578.9,2578.2,0.2214]
[1748242902663,0.36098003,2578.9,2578.3,8.127]
[1748242903497,0.36098003,2578.8,2578.3,8.127]
[1748242903894,0.36098003,2578.8,2578.4,0.2214]
[1748242904305,1.1292,2579.3,2578.4,0.2214]
[1748242905319,0.36141411,2579.2,2578.4,0.2214]
[1748242906391,0.36141411,2579.2,2578.6,3.2994311]
[1748242906696,4.4414311,2579.5,2578.7,8.127]
[1748242906870,0.44414311,2579.4,2578.7,8.127]
[1748242907070,1.142,2579.3,2578.7,8.127]
[1748242907708,0.36166686,2579.2,2578.7,8.127]
[1748242908704,0.36166686,2579.1,2578.7,8.127]
[1748242909220,0.36166686,2579.1,2578.8,0.03877593]
[1748242909378,0.36166686,2579.1,2578.7,8.127]
[1748242909573,1.1631,2579.4,2578.7,8.127]
[1748242909776,1.1671,2579.8,2579.0,3.2994311]
[1748242910812,0.36155973,2579.7,2579.0,3.2994311]
[1748242911594,1.1671,2579.8,2579.0,3.2994311]
[1748242913516,0.36142629,2579.7,2579.0,3.2994311]
[1748242914522,1.1671,2579.8,2578.8,3.75527155]
[1748242915026,1.61875311,2579.8,2578.8,3.75527155]
[1748242916124,0.36139047,2579.7,2578.8,3.2994311]
[1748242917592,1.61875311,2579.8,2578.8,3.2994311]
[1748242917793,1.1716,2579.7,2578.9,8.126]
[1748242918126,1.1716,2579.7,2579.0,8.126]
[1748242918419,0.36134649,2579.6,2579.0,8.126]
[1748242919230,0.36134649,2579.5,2579.0,8.126]
[1748242919526,1.1404,2579.4,2578.6,0.45584045]
[1748242919698,1.1404,2579.4,2578.7,8.126]
[1748242920025,0.36134649,2579.3,2578.7,8.126]
[1748242920997,1.1404,2579.2,2578.3,0.45584045]
[1748242923833,5.16785535,2579.0,2578.9,8.126]
[1748242924431,1.2207,2578.9,2577.9,8.358]
[1748242924734,1.2207,2578.9,2578.0,8.126]
[1748242924931,4.5201311,2578.8,2578.0,4.257]
[1748242925094,1.2207,2578.7,2578.1,3.869]
[1748242925303,0.36134649,2578.6,2578.1,3.869]
[1748242925608,0.36134649,2578.6,2578.3,3.2994311]
[1748242926335,1.2207,2578.9,2578.3,3.2994311]
[1748242926636,1.2207,2578.9,2578.1,15.1684311]
[1748242926930,1.2207,2578.9,2578.1,7.1684311]
[1748242927293,4.5201311,2578.9,2577.9,8.81384045]
[1748242927500,1.2453,2578.8,2578.2,4.257]
[1748242927700,1.2453,2578.7,2578.2,4.257]
[1748242930703,1.2479,2578.4,2578.3,8.128]
[1748242932403,1.2479,2578.4,2577.9,8.358]
[1748242932610,1.1632,2578.2,2578.0,8.098]
[1748242935143,1.1632,2578.2,2578.1,3.87]
[1748242936208,1.52383521,2578.2,2578.1,3.87]
[1748242937317,1.1632,2578.2,2578.1,3.87]
[1748242937657,1.1632,2578.2,2578.1,3.871]
[1748242937808,0.48232663,2578.2,2578.1,3.871]
[1748242938002,8.48232663,2578.2,2578.1,3.871]
[1748242938207,0.55,2578.1,2577.9,8.358]
[1748242938453,1.52023521,2578.0,2577.9,12.229]
[1748242939251,1.52023521,2578.0,2577.9,8.358]
[1748242939425,1.7162,2577.9,2577.8,3.871]
[1748242939623,5.0156311,2577.9,2577.8,3.871]
[1748242939846,13.0156311,2577.9,2577.7,4.228]
[1748242940147,1.1539,2577.7,2576.1,4.34121439]
[1748242940369,1.1539,2577.7,2577.4,3.871]
[1748242940510,1.1539,2577.5,2577.4,3.871]
[1748242941536,4.4533311,2577.5,2577.4,3.871]
[1748242941720,5.0033311,2577.5,2577.4,3.871]
[1748242941920,13.0033311,2577.5,2577.4,3.871]
[1748242943345,13.36396631,2577.5,2577.4,3.871]
[1748242943536,14.70036294,2577.5,2577.4,3.871]
[1748242944247,11.40093184,2577.5,2577.4,3.871]
[1748242944434,0.36063521,2577.5,2577.4,3.871]
[1748242944747,0.36063521,2577.5,2577.4,4.35395429]
[1748242945139,1.1699,2577.7,2577.4,3.871]
[1748242947772,0.36063521,2577.8,2577.4,3.871]
[1748242948480,1.54013521,2578.1,2577.4,4.35395429]
[1748242948798,1.54013521,2578.1,2577.5,0.48295429]
[1748242949562,9.1795,2578.1,2577.4,3.871]
[1748242949864,4.58338773,2578.0,2577.4,3.871]
[1748242950443,4.94402294,2578.0,2577.5,8.102]
[1748242952339,0.36063521,2577.9,2577.5,8.102]
[1748242952754,1.2577,2577.8,2577.5,8.102]
[1748242953570,1.61833521,2577.8,2577.5,4.23]
[1748242953876,4.91776631,2577.8,2577.6,3.872]
[1748242954035,0.49177663,2577.7,2577.6,3.872]
[1748242954781,0.36063521,2577.9,2577.6,3.872]
[1748242955369,0.36063521,2577.9,2577.6,3.9428]
[1748242955581,0.36063521,2577.9,2577.8,0.0708]
[1748242955884,0.36063521,2578.4,2577.9,0.0708]
[1748242956083,0.36063521,2578.4,2578.0,3.872]
[1748242956444,0.36063521,2578.7,2578.0,3.872]
[1748242956649,4.19801778,2578.7,2578.0,3.872]
[1748242956849,4.19801778,2578.7,2578.1,8.102]
[1748242957660,0.89858668,2578.7,2578.1,8.102]
[1748242957851,0.36063521,2578.7,2578.2,0.0708]
[1748242958052,1.17,2578.9,2578.2,0.0708]
[1748242959071,0.36067915,2578.8,2578.2,0.0708]
[1748242959881,0.36067915,2578.8,2578.3,0.03878135]
[1748242960080,0.36067915,2578.8,2578.2,0.0708]
[1748242960081,0.36067915,2578.8,2578.4,0.0708]
[1748242960275,0.36067915,2578.8,2578.6,0.0708]
[1748242960980,0.36067915,2579.5,2578.6,0.0708]
[1748242961148,1.51463132,2579.5,2578.6,0.0708]
[1748242961352,0.36067915,2579.5,2578.6,0.0708]
[1748242961552,0.36067915,2579.4,2578.6,0.0708]
[1748242962544,0.36067915,2579.3,2578.6,0.0708]
[1748242963590,0.36067915,2579.3,2578.7,8.173]
[1748242963751,0.36067915,2579.5,2578.7,8.173]
[1748242963949,1.31929706,2579.5,2578.7,8.173]
[1748242965056,1.31929706,2579.5,2578.8,8.173]
[1748242965259,0.36067915,2579.4,2578.8,8.173]
[1748242965867,0.36067915,2579.4,2578.6,0.0708]
[1748242966251,0.36067915,2579.4,2578.7,8.173]
[1748242966455,1.301961,2579.4,2578.6,0.0708]
[1748242966655,1.301961,2579.4,2578.7,8.172]
[1748242966973,1.2039,2579.3,2578.6,0.0708]
[1748242967557,1.2039,2579.3,2578.7,8.171]
[1748242967778,1.2039,2579.3,2578.6,0.0708]
[1748242967984,2.94128825,2579.3,2578.7,8.171]
[1748242968162,2.94128825,2579.3,2578.6,0.0708]
[1748242968376,2.94128825,2579.3,2578.7,8.171]
[1748242969754,2.94128825,2579.3,2578.8,8.171]
[1748242970875,1.1614,2579.1,2578.5,8.363]
[1748242971059,9.1614,2579.1,2578.6,8.171]
[1748242971885,9.52207915,2579.1,2578.6,8.171]
[1748242972086,8.36067915,2579.1,2578.6,8.171]
[1748242972289,8.36067915,2579.1,2578.7,3.87]
[1748242972290,6.86802148,2578.9,2578.7,3.87]
[1748242972497,6.86802148,2578.9,2578.6,4.301]
[1748242972498,6.86802148,2578.9,2578.8,3.87]
[1748242972895,16.08142148,2578.9,2578.8,3.87]
[1748242973095,8.55,2578.8,2578.6,4.301]
[1748242973312,0.36067915,2578.9,2578.7,3.87]
[1748242973459,0.36067915,2578.9,2578.8,0.0699]
[1748242974698,1.2556,2579.4,2578.7,3.87]
[1748242975500,0.36067915,2579.3,2578.7,3.87]
[1748242976993,0.36067915,2579.3,2578.6,4.3709]
[1748242977312,1.20910921,2579.3,2578.7,3.87]
[1748242977619,0.36067915,2579.2,2578.7,3.87]
[1748242978424,1.209,2579.1,2578.5,8.363]
[1748242978563,0.36067915,2579.0,2578.8,8.171]
[1748242978759,8.07702148,2578.9,2578.8,4.301]
[1748242978980,1.209,2578.9,2578.8,8.171]
[1748242979816,0.36067915,2579.0,2578.8,8.171]
[1748242980121,0.36067915,2578.9,2578.8,8.171]
[1748242988633,0.36067915,2578.9,2578.5,8.363]
[1748242988828,1.55217915,2578.9,2578.6,8.171]
[1748242989619,0.36067915,2578.8,2578.6,8.171]
[1748242990636,0.36067915,2578.7,2578.6,8.171]
[1748242996832,0.36067915,2578.7,2578.6,4.301]
[1748242996995,0.36067915,2578.7,2578.6,8.171]
[1748242999951,0.36067915,2578.7,2578.6,11.47206559]
[1748243000133,1.1544,2579.5,2578.6,11.98251988]
[1748243000311,1.1544,2579.5,2578.7,0.51045429]
[1748243000732,0.36225557,2579.4,2578.8,0.10637334]
[1748243001044,0.36225557,2579.4,2578.8,0.0676]
[1748243001463,1.2753,2579.3,2578.9,8.132]
[1748243001641,0.49386212,2579.2,2578.9,8.132]
[1748243002130,0.36225557,2579.1,2578.9,8.132]
[1748243003025,0.36225557,2579.0,2578.9,8.132]
[1748243003345,0.36225557,2579.0,2578.9,8.1996]
[1748243007811,1.1497,2579.6,2578.9,8.1996]
[1748243008435,1.1497,2579.6,2579.0,3.87]
[1748243008831,4.45076559,2579.6,2579.0,3.87]
[1748243009033,3.30106559,2579.4,2578.6,0.0676]
[1748243009351,0.48287775,2579.5,2578.5,0.96629474]
[1748243009352,3.30106559,2579.2,2578.7,8.131]
[1748243009645,3.30106559,2578.8,2578.2,0.52344045]
[1748243009864,1.1873,2578.5,2578.3,8.131]
[1748243010023,0.36207714,2578.4,2578.3,4.261]
[1748243010224,0.36207714,2578.4,2578.3,8.131]
[1748243010421,0.36207714,2578.4,2578.3,8.1986]
[1748243010956,0.36207714,2578.4,2578.3,9.14111163]
[1748243011249,0.36207714,2578.4,2578.3,8.67313763]
[1748243011454,0.36207714,2579.1,2578.4,0.0676]
[1748243012214,0.36207714,2579.0,2578.4,0.0676]
[1748243012628,0.36207714,2579.0,2578.4,3.36866559]
[1748243012828,1.2681,2579.4,2578.6,3.30106559]
[1748243013033,1.2681,2579.4,2578.5,0.0676]
[1748243013751,0.36194514,2579.3,2578.5,0.0676]
[1748243014820,0.36194514,2579.2,2578.5,0.0676]
[1748243015650,1.2681,2579.4,2578.5,0.0676]
[1748243017054,0.36184626,2579.3,2578.5,0.0676]
[1748243017357,0.36184626,2579.3,2578.6,8.0]
[1748243017560,1.2021,2579.1,2578.5,8.0]
[1748243017757,0.36184626,2579.2,2578.6,8.131]
[1748243018359,0.36184626,2579.2,2578.7,0.0676]
[1748243018658,1.2021,2579.4,2578.7,0.0676]
[1748243019222,0.36181577,2579.3,2578.7,0.0676]
[1748243020177,0.36181577,2579.3,2578.8,8.131]
[1748243020330,0.36181577,2579.2,2578.8,8.131]
[1748243021569,1.2021,2579.4,2578.8,4.261]
[1748243021882,1.2021,2579.4,2578.9,4.261]
[1748243022088,1.2021,2579.4,2578.9,8.131]
[1748243022550,0.36185017,2579.3,2578.9,8.131]
[1748243022758,1.2045,2579.2,2578.4,0.45584045]
[1748243022976,1.2045,2579.2,2578.5,8.131]
[1748243023143,1.2045,2579.0,2578.6,8.131]
[1748243023339,0.36185017,2578.9,2578.6,8.131]
[1748243023540,1.2617,2578.8,2578.6,8.131]
[1748243024438,0.36185017,2578.7,2578.6,8.131]
[1748243028679,0.36185017,2578.7,2578.6,4.261]
[1748243028988,0.36185017,2578.7,2578.6,8.131]
[1748243029662,0.36185017,2578.7,2578.6,8.09]
[1748243030781,0.36185017,2578.7,2578.6,4.22]
[1748243030985,0.36185017,2578.7,2578.6,8.09]
[1748243031497,0.36185017,2578.7,2578.6,8.091]
[1748243031703,1.59165017,2578.7,2578.6,4.221]
[1748243031853,1.59165017,2578.7,2578.6,8.091]
[1748243032295,1.256,2578.6,2578.0,8.36]
[1748243032492,1.256,2578.6,2578.1,8.091]
[1748243032695,1.256,2578.6,2578.2,3.87]
[1748243033071,1.256,2578.6,2578.1,4.221]
[1748243033276,0.36185017,2578.5,2578.2,3.87]
[1748243033497,1.2331,2578.4,2578.2,3.87]
[1748243033997,0.36185017,2578.3,2578.2,3.87]
[1748243035508,0.36185017,2578.3,2578.1,4.221]
[1748243035698,0.36185017,2578.3,2578.2,3.87]
[1748243036063,0.5607597,2578.3,2578.2,3.87]
[1748243036306,0.5607597,2578.3,2578.1,4.221]
[1748243036472,0.5607597,2578.3,2578.2,3.87]
[1748243037818,0.5607597,2578.3,2578.1,4.221]
[1748243038024,0.5607597,2578.3,2578.2,3.87]
[1748243038504,0.5607597,2578.3,2578.0,8.36]
[1748243038695,1.1603,2578.2,2578.1,8.092]
[1748243038898,1.37182048,2578.2,2578.1,8.092]
[1748243040010,1.73367065,2578.2,2578.1,8.092]
[1748243040410,1.73367065,2578.2,2578.1,4.221]
[1748243040583,1.73367065,2578.2,2578.1,8.092]
[1748243041544,1.1632,2578.0,2577.1,0.52453763]
[1748243041675,1.1632,2578.0,2577.7,4.221]
[1748243041873,1.1632,2578.0,2577.8,3.871]
[1748243042274,1.1632,2577.8,2577.7,4.221]
[1748243042474,1.1632,2577.8,2577.7,8.092]
[1748243042676,0.36185017,2577.9,2577.7,8.092]
[1748243042974,0.36185017,2577.9,2577.8,0.51333049]
[1748243043178,0.36185017,2577.9,2577.8,0.47453763]
[1748243043526,0.36185017,2578.3,2577.8,0.47453763]
[1748243044082,1.1632,2578.4,2577.7,11.46218352]
[1748243044949,1.52505017,2578.4,2577.7,11.46218352]
[1748243045441,0.36185017,2578.4,2577.8,0.0672]
[1748243046162,1.1966,2578.4,2577.8,0.0672]
[1748243046633,2.11626,2578.4,2577.9,3.871]
[1748243046995,0.36185017,2578.3,2577.9,3.871]
[1748243047355,0.36185017,2578.3,2578.0,3.34177222]
[1748243047561,0.36185017,2578.3,2578.1,0.0672]
[1748243048069,0.36185017,2578.9,2578.1,0.0672]
[1748243048639,0.36185017,2578.8,2578.1,0.0672]
[1748243048811,0.36185017,2578.8,2578.4,3.30298352]
[1748243049012,0.36185017,2578.8,2578.6,0.0672]
[1748243049504,0.36185017,2579.3,2578.6,0.0672]
[1748243049710,1.35712981,2579.3,2578.6,0.0672]
[1748243049920,9.35712981,2579.3,2578.6,0.0672]
[1748243050795,0.36185017,2579.2,2578.6,0.0672]
[1748243051596,0.36185017,2579.1,2578.6,0.0672]
[1748243052496,1.2337,2579.0,2578.0,0.0672]
[1748243052839,0.36185017,2578.9,2578.1,8.092]
[1748243053241,0.36185017,2578.9,2578.2,8.092]
[1748243053944,0.36185017,2578.8,2578.3,3.87]
[1748243054440,1.2181,2578.7,2578.4,8.091]
[1748243055356,0.36185017,2578.6,2578.4,8.091]
[1748243056452,0.36185017,2578.5,2578.4,8.091]
[1748243057640,0.36185017,2578.5,2578.4,4.221]
[1748243057941,0.36185017,2578.5,2578.4,8.092]
[1748243059138,0.36185017,2578.5,2578.0,0.0672]
[1748243059341,0.36185017,2578.5,2578.1,8.09]
[1748243059656,0.36185017,2578.4,2578.2,3.871]
[1748243060663,0.36185017,2578.3,2578.2,3.871]
[1748243061347,1.51305017,2578.3,2578.2,3.871]
[1748243062661,0.36185017,2578.3,2578.2,3.871]
[1748243064455,1.1512,2578.6,2578.2,3.871]
[1748243065669,0.36157592,2578.5,2578.2,3.871]
[1748243067010,0.36157592,2578.4,2578.2,3.871]
[1748243067893,1.1512,2578.6,2578.2,3.871]
[1748243068886,0.36161969,2578.5,2578.2,3.871]
[1748243069284,0.36161969,2578.5,2578.3,0.54303763]
[1748243069858,0.36161969,2578.9,2578.3,0.54303763]
[1748243070814,0.36161969,2578.9,2578.5,0.0685]
[1748243071020,0.36161969,2578.9,2578.6,3.871]
[1748243071393,8.0,2579.2,2578.6,3.871]
[1748243071594,2.01833796,2579.1,2578.6,3.871]
[1748243072581,0.36168532,2579.0,2578.6,3.871]
[1748243073198,0.36168532,2579.0,2578.7,0.0685]
[1748243073526,1.2198,2579.6,2578.7,0.0685]
[1748243073527,0.36168532,2579.5,2578.8,4.219]
[1748243073692,0.71516811,2579.5,2578.8,4.219]
[1748243074311,0.36168532,2579.4,2578.8,4.219]
[1748243074626,0.36168532,2579.4,2579.3,0.0685]
[1748243074929,0.36168532,2579.4,2579.3,21.8297721]
[1748243075109,0.36168532,2579.4,2579.3,21.79101163]
[1748243075417,0.05,2579.9,2579.4,8.55]
[1748243075719,0.05,2579.9,2579.8,11.91951524]
[1748243075921,0.05,2579.9,2579.8,19.34460834]
[1748243076218,0.05,2579.9,2579.8,8.0685]
[1748243076419,0.05,2579.9,2579.8,8.1565]
[1748243077602,0.05,2579.9,2579.8,9.18103763]
[1748243078355,1.95334253,2580.2,2580.1,15.40610834]
[1748243078502,1.95334253,2580.2,2580.1,15.47460834]
[1748243079301,6.53608683,2581.6,2580.2,8.55]
[1748243079611,6.53608683,2581.6,2580.8,14.92460834]
[1748243079843,6.53608683,2581.6,2580.8,23.01160834]
[1748243080052,6.53608683,2581.6,2580.8,8.0685]
[1748243080208,6.53608683,2581.6,2580.8,8.087]
[1748243080413,1.2254,2581.2,2580.8,8.087]
[1748243080629,2.82855637,2580.9,2580.2,0.0685]
[1748243080942,1.2351,2580.8,2580.3,8.087]
[1748243081142,1.2351,2580.8,2580.4,4.217]
[1748243081449,1.2351,2580.8,2580.5,8.086]
[1748243081601,2.16361,2580.8,2579.7,6.85610834]
[1748243081807,1.2351,2580.8,2579.8,8.085]
[1748243082863,1.2351,2580.8,2579.8,8.55953763]
[1748243085178,1.2351,2580.8,2580.0,6.85610834]
[1748243085393,0.05,2580.9,2580.3,6.85610834]
[1748243085538,0.05,2580.9,2580.4,3.868]
[1748243085740,0.05,2580.9,2580.5,4.216]
[1748243088477,0.05,2580.9,2580.6,4.237]
[1748243089666,0.05,2580.9,2580.7,3.868]
[1748243090662,0.05,2580.9,2579.9,8.43499283]
[1748243090988,0.05,2580.9,2580.1,8.0]
[1748243091590,1.2164,2580.8,2580.2,8.104]
[1748243091751,9.2164,2580.8,2579.3,8.36]
[1748243091957,1.2164,2580.6,2579.4,8.104]
[1748243092652,1.2164,2580.6,2579.4,8.53899283]
[1748243093065,1.2164,2580.6,2579.5,8.104]
[1748243093587,1.2188,2580.5,2579.5,8.104]
[1748243094859,1.2188,2580.5,2579.6,0.43499283]
[1748243095670,1.2188,2580.5,2579.5,8.104]
[1748243096664,1.2188,2580.5,2579.6,0.03875725]
[1748243097599,1.2188,2580.5,2579.7,8.105]
[1748243099912,1.2188,2580.5,2579.8,3.868]
[1748243100076,1.1963,2580.3,2579.9,8.105]
[1748243100414,1.1963,2580.3,2580.0,3.868]
[1748243100971,8.03680834,2580.1,2579.9,4.237]
[1748243101178,1.1807,2579.9,2579.4,4.237]
[1748243101485,8.0,2580.0,2579.4,3.868]
[1748243101486,1.1807,2579.5,2579.4,3.868]
[1748243101667,1.1807,2579.5,2579.2,4.238]
[1748243101876,1.1807,2579.3,2579.2,4.238]
[1748243102303,1.93397499,2579.3,2579.2,4.238]
[1748243102867,1.93397499,2579.3,2579.2,8.106]
[1748243103075,3.61298332,2579.3,2579.2,8.106]
[1748243103371,3.76788923,2579.3,2579.2,8.106]
[1748243103572,1.2019,2579.2,2579.1,3.868]
[1748243103823,16.01250834,2579.2,2579.1,3.868]
[1748243104109,16.01250834,2579.2,2577.7,0.43499283]
[1748243104110,8.55,2579.1,2577.7,0.43499283]
[1748243104284,8.55,2579.1,2577.8,8.106]
[1748243104285,1.1564,2579.0,2577.8,8.106]
[1748243104484,1.5145809,2579.0,2577.8,8.106]
[1748243104790,6.85610834,2578.8,2577.9,8.107]
[1748243104973,1.2285,2578.7,2577.9,8.107]
[1748243105177,0.80846083,2578.6,2577.9,8.107]
[1748243105606,1.2285,2578.5,2578.0,3.869]
[1748243106202,1.2285,2578.4,2577.4,8.357]
[1748243106510,1.2285,2578.3,2577.5,4.238]
[1748243106811,1.2285,2578.1,2577.5,8.107]
[1748243107016,0.80846083,2578.0,2577.5,8.107]
[1748243107214,1.2285,2578.1,2577.6,0.43499283]
[1748243107374,1.2285,2578.1,2577.6,0.47378645]
[1748243107711,1.2114,2578.6,2577.5,8.107]
[1748243107895,1.2114,2578.6,2577.4,8.357]
[1748243107896,1.2114,2578.1,2577.4,8.357]
[1748243108215,1.2114,2577.9,2577.5,3.87]
[1748243108374,0.80675083,2577.8,2577.5,3.87]
[1748243109113,9.2302,2577.6,2577.1,0.05]
[1748243109313,1.2302,2577.5,2577.2,8.109]
[1748243110099,1.2302,2577.5,2577.1,0.05]
[1748243110298,1.2302,2577.5,2577.3,8.109]
[1748243111306,1.2302,2577.5,2577.1,0.05]
[1748243111707,1.2302,2577.5,2577.2,8.11]
[1748243112386,1.192,2577.9,2577.2,8.11]
[1748243114005,1.2726,2578.6,2577.4,6.85610834]
[1748243114218,1.65687588,2578.6,2577.4,6.85610834]
[1748243114812,1.2726,2578.6,2577.8,6.85610834]
[1748243114991,1.2726,2578.6,2577.9,8.112]
[1748243119440,1.2726,2578.6,2578.0,3.871]
[1748243119819,1.2726,2578.6,2578.1,4.28]
[1748243120010,1.2726,2578.6,2578.2,3.871]
[1748243120326,1.2726,2578.6,2578.1,4.28]
[1748243120527,1.2726,2578.6,2578.3,3.871]
[1748243120737,1.2726,2578.6,2578.4,3.871]
[1748243123896,0.20194787,2578.5,2578.4,3.871]
[1748243124296,1.54174787,2578.5,2578.3,3.871]
[1748243125912,0.35737644,2578.4,2578.3,3.871]
[1748243126115,1.302,2578.3,2578.1,4.28]
[1748243126402,1.302,2578.3,2578.1,8.151]
[1748243126810,0.35737644,2578.2,2578.1,8.151]
[1748243129438,0.35737644,2578.2,2578.1,4.28]
[1748243129603,1.68587644,2578.2,2577.1,8.2973]
[1748243129809,1.3285,2578.1,2577.2,8.152]
[1748243130005,1.3285,2578.1,2577.2,4.28]
[1748243130006,0.35737644,2578.0,2577.2,4.28]
[1748243130345,1.3283,2577.7,2577.3,3.872]
[1748243131445,0.35737644,2577.6,2577.3,3.872]
[1748243131641,1.3283,2577.5,2577.3,3.872]
[1748243132324,0.35737644,2577.4,2577.3,3.872]
[1748243135316,0.35737644,2577.4,2577.1,0.05]
[1748243135521,0.35737644,2577.4,2577.2,8.153]
[1748243135718,0.35737644,2577.3,2577.2,8.153]
[1748243136837,0.35737644,2577.3,2577.2,4.281]
[1748243137038,0.35737644,2577.3,2577.2,8.153]
[1748243137360,0.35737644,2577.3,2577.2,4.281]
[1748243139968,0.35737644,2577.3,2577.2,8.153]
[1748243140276,1.69257644,2577.3,2577.1,0.05]
[1748243140436,0.35737644,2577.2,2577.1,3.922]
[1748243140764,1.3352,2577.1,2576.7,3.873]
[1748243141067,0.55,2577.0,2575.9,0.2473]
[1748243141267,0.55,2576.8,2576.1,0.04606967]
[1748243141465,1.3352,2576.7,2576.1,3.91906967]
[1748243141870,0.55,2576.6,2576.1,0.04606967]
[1748243142074,2.36062531,2576.5,2576.1,3.91906967]
[1748243142290,1.3331,2576.5,2576.1,3.91906967]
[1748243142499,0.35737644,2576.4,2576.1,3.91906967]
[1748243142945,1.3581,2576.3,2576.1,0.04606967]
[1748243143150,1.3581,2576.3,2576.2,8.155]
[1748243143595,1.71547644,2576.3,2576.2,8.155]
[1748243144074,1.71547644,2576.3,2576.2,3.873]
[1748243144760,1.71547644,2576.3,2576.1,0.04606967]
[1748243144761,1.3286,2576.2,2576.1,0.04606967]
[1748243145159,1.68597644,2576.2,2576.1,0.04606967]
[1748243146059,0.35737644,2576.2,2576.1,0.04606967]
[1748243146476,0.35737644,2576.4,2576.1,0.04606967]
[1748243148260,0.35737644,2576.4,2576.1,0.29266967]
[1748243148569,1.2384,2576.8,2576.1,8.29266967]
[1748243148570,0.35737644,2576.7,2576.1,8.29266967]
[1748243149081,0.35737644,2576.7,2576.1,0.04606967]
[1748243149280,1.3385,2576.6,2576.2,3.874]
[1748243149489,1.69587644,2576.6,2576.2,4.297]
[1748243150046,0.35737644,2576.6,2576.2,4.297]
[1748243150273,1.3385,2576.8,2576.2,4.297]
[1748243150662,1.3385,2576.8,2576.3,3.874]
[1748243152498,1.3385,2576.8,2576.4,3.874]
[1748243153762,1.3385,2576.8,2576.5,8.0]
[1748243153964,0.35737644,2576.9,2576.5,8.0]